[Event "SVK-ch Open 2018"]
[Site "Banska Stiavnica"]
[Date "2018.07.13"]
[Round "7"]
[White "Molnar, Erno"]
[Black "Talla, Vladimir"]
[Result "0-1"]
[ECO "C70"]
[WhiteElo "2231"]
[BlackElo "2402"]
[Annotator "NA"]
[PlyCount "108"]
[EventDate "2018.07.07"]
[EventType "swiss"]
[EventCountry "SVK"]
[SourceTitle "playchess.com"]
[Source "ChessBase"]
[SourceQuality "1"]
[TimeControl "40/5400+30:1800+30"]

1. e4 {[%emt 0:00:00]} e5 {[%emt 0:06:38]} 2. Nf3 {[%emt 0:00:00]} Nc6 {[%emt 0:00:04]} 3. Bb5 {[%emt 0:00:00]} a6 {[%emt 0:00:05]} 4. Ba4 {[%emt 0:00:00]} Nge7 {[%emt 0:00:05]} 5. c3 {[%emt 0:02:20]} g6 {[%emt 0:00:12]} 6. d4 {[%emt 0:01:09]} exd4 {[%emt 0:00:19]} 7. cxd4 {[%emt 0:00:12]} Bg7 {[%emt 0:00:49]} 8. O-O {[%emt 0:04:49]} O-O {[%emt 0:00:05]} 9. Nc3 {[%emt 0:03:34]} d5 {[%emt 0:00:13]} 10. exd5 {[%emt 0:13:35]} Nxd5 {[%emt 0:00:11]} 11. h3 {[%emt 0:00:40]} b5 {[%emt 0:32:40]} 12. Bb3 {[%emt 0:04:18]} Nxc3 {[%emt 0:05:30]} 13. bxc3 {[%emt 0:00:18]} Qd6 {[%emt 0:15:28]} 14. a4 {[%emt 0:14:34]} b4 {[%emt 0:04:01]} 15. cxb4 {[%emt 0:01:41]} Nxb4 {[%emt 0:00:42]} 16. a5 {[%emt 0:14:15]} Bb7 {[%emt 0:08:06]} 17. Ba3 {[%emt 0:03:55]} Rab8 {[%emt 0:04:00]} 18. Ne1 {[%emt 0:07:54]} Rfd8 {[%emt 0:10:50]} 19. Rb1 {[%emt 0:04:47]} Be4 {[%emt 0:04:24]} 20. Bc2 {[%emt 0:02:46]} Bxc2 {[%emt 0:03:53]} 21. Nxc2 {[%emt 0:00:31]} c5 {[%emt 0:00:01]} 22. Qc1 {[%emt 0:07:43]} Nxc2 {[%emt 0:00:50]} 23. Bxc5 {[%emt 0:00:20]} Qc6 {[%emt 0:01:03]} 24. Qxc2 {[%emt 0:05:37]} Bxd4 {[%emt 0:00:07]} 25. Rbc1 {[%emt 0:00:33]} Rbc8 {[%emt 0:01:01]} 26. Bb6 {[%emt 0:04:04]} Qxc2 {[%emt 0:00:42]} 27. Rxc2 {[%emt 0:00:02]} Rxc2 {[%emt 0:00:48]} 28. Bxd8 {[%emt 0:00:02]} Ra2 {[%emt 0:00:06]} 29. Rd1 {[%emt 0:04:10]} Bxf2+ {[%emt 0:00:29]} 30. Kf1 {[%emt 0:00:17]} Be3 {[%emt 0:00:20]} 31. Rd6 {[%emt 0:00:47]} Rd2 {[%emt 0:00:58]} 32. Rxd2 {[%emt 0:00:29]} Bxd2 {[%emt 0:00:00]} 33. Ke2 {[%emt 0:00:09]} Bc1 {[%emt 0:00:10]} 34. Kd3 {[%emt 0:00:34]} Kf8 {[%emt 0:00:02]} 35. Kc4 {[%emt 0:00:18]} Ke8 {[%emt 0:00:01]} 36. Bb6 {[%emt 0:00:09]} Kd7 {[%emt 0:00:23]} 37. Kd5 {[%emt 0:00:01]} Bd2 {[%emt 0:00:44]} 38. Ke5 {[%emt 0:00:52]} Bc3+ {[%emt 0:00:03]} 39. Kd5 {[%emt 0:00:11]} f6 {[%emt 0:00:15]} 40. Kc4 {[%emt 0:01:26]} Bd2 {[%emt 0:00:10]} 41. Kd5 {[%emt 0:30:11]} Bb4 {[%emt 0:33:15]} 42. g4 {[%emt 0:00:00]} Be1 {[%emt 0:00:00]} 43. Ke4 {[%emt 0:00:00]} Kc6 {[%emt 0:00:00]} 44. Bd8 {[%emt 0:00:00]} Kb5 {[%emt 0:00:00]} 45. Bxf6 {[%emt 0:00:00]} Bxa5 {[%emt 0:00:00]} 46. h4 {[%emt 0:00:00]} Kc4 {[%emt 0:00:00]} 47. h5 {[%emt 0:00:00]} Bc7 {[%emt 0:00:00]} 48. hxg6 {[%emt 0:00:15]} hxg6 {[%emt 0:00:00]} 49. Be7 {[%emt 0:00:21]} a5 {[%emt 0:00:00]} 50. Ba3 {[%emt 0:01:34]} g5 {[%emt 0:00:00]} 51. Bc1 {[%emt 0:00:50]} Bd8 {[%emt 0:00:00]} 52. Kf5 {[%emt 0:00:11]} a4 {[%emt 0:00:00]} 53. Ke6 {[%emt 0:00:23]} Kb3 {[%emt 0:00:00]} 54. Kd7 {[%emt 0:00:03]} Bf6 {[%emt 0:00:00]} 0-1

[Event "SVK-ch Open 2018"]
[Site "Banska Stiavnica"]
[Date "2018.07.13"]
[Round "7"]
[White "Seres, Bela"]
[Black "Pniaczek, Marek"]
[Result "0-1"]
[ECO "B20"]
[WhiteElo "2212"]
[BlackElo "2082"]
[Annotator "NA"]
[PlyCount "63"]
[EventDate "2018.07.07"]
[EventType "swiss"]
[EventCountry "SVK"]
[SourceTitle "playchess.com"]
[Source "ChessBase"]
[SourceQuality "1"]
[TimeControl "40/5400+30:1800+30"]

1. e4 {[%emt 0:03:40]} c5 {[%emt 0:00:00]} 2. d3 {[%emt 0:01:14]} Nc6 3. g3 {[%emt 0:01:09]} g6 {[%emt 0:01:30]} 4. Bg2 {[%emt 0:00:52]} Bg7 {[%emt 0:00:17]} 5. Nh3 {[%emt 0:01:08]} d6 {[%emt 0:04:27]} 6. O-O {[%emt 0:03:06]} e6 {[%emt 0:03:54]} 7. f4 {[%emt 0:06:46]} Nge7 {[%emt 0:00:38]} 8. Nc3 {[%emt 0:01:55]} O-O {[%emt 0:02:32]} 9. Kh1 {[%emt 0:03:00]} Rb8 {[%emt 0:03:24]} 10. Ne2 {[%emt 0:05:40]} b5 {[%emt 0:06:04]} 11. f5 {[%emt 0:09:00]} exf5 {[%emt 0:09:35]} 12. exf5 {[%emt 0:00:09]} Bxf5 {[%emt 0:05:57]} 13. Rxf5 {[%emt 0:00:42]} Nxf5 {[%emt 0:20:45]} 14. Bxc6 {[%emt 0:00:25]} d5 {[%emt 0:00:02]} 15. a4 {[%emt 0:13:04]} a6 {[%emt 0:01:00]} 16. axb5 {[%emt 0:00:52]} axb5 {[%emt 0:00:04]} 17. Bf4 {[%emt 0:00:40]} Qf6 {[%emt 0:08:22]} 18. Bxd5 {[%emt 0:09:32]} Rbd8 {[%emt 0:00:24]} 19. Be4 {[%emt 0:01:28]} Qxb2 {[%emt 0:01:25]} 20. Rb1 {[%emt 0:00:22]} Qa3 {[%emt 0:01:16]} 21. Rxb5 {[%emt 0:07:15]} c4 {[%emt 0:00:42]} 22. Nf2 {[%emt 0:22:25]} Rfe8 {[%emt 0:01:29]} 23. Rxf5 {[%emt 0:01:27]} gxf5 {[%emt 0:00:26]} 24. Bxf5 {[%emt 0:00:02]} Qc5 {[%emt 0:00:59]} 25. Nd4 {[%emt 0:02:15]} Qxd4 {[%emt 0:02:15]} 26. Qf3 {[%emt 0:01:53]} cxd3 {[%emt 0:02:01]} 27. cxd3 {[%emt 0:00:01]} Ra8 {[%emt 0:00:40]} 28. Be4 {[%emt 0:00:36]} Ra2 {[%emt 0:01:33]} 29. Be3 {[%emt 0:00:47]} Qe5 {[%emt 0:02:36]} 30. Kg2 {[%emt 0:00:55]} Rb2 {[%emt 0:02:33]} 31. Bf4 {[%emt 0:02:17]} Qa5 {[%emt 0:04:09]} 32. Kh3 {[%emt 0:00:00]} 0-1

[Event "SVK-ch Open 2018"]
[Site "Banska Stiavnica"]
[Date "2018.07.13"]
[Round "7"]
[White "Bombek, Peter"]
[Black "Ferkova, Dominika"]
[Result "1/2-1/2"]
[ECO "D52"]
[WhiteElo "2201"]
[BlackElo "2053"]
[Annotator "NA"]
[PlyCount "141"]
[EventDate "2018.07.07"]
[EventType "swiss"]
[EventCountry "SVK"]
[SourceTitle "playchess.com"]
[Source "ChessBase"]
[SourceQuality "1"]
[TimeControl "40/5400+30:1800+30"]

1. d4 {[%emt 0:00:00]} d5 {[%emt 0:00:53]} 2. c4 {[%emt 0:00:29]} c6 {[%emt 0:00:06]} 3. Nf3 {[%emt 0:00:05]} Nf6 {[%emt 0:00:12]} 4. Nc3 {[%emt 0:00:17]} e6 {[%emt 0:00:09]} 5. Bg5 {[%emt 0:00:18]} Nbd7 {[%emt 0:00:32]} 6. e3 {[%emt 0:01:39]} Be7 {[%emt 0:00:07]} 7. Bd3 {[%emt 0:00:12]} O-O {[%emt 0:00:18]} 8. O-O {[%emt 0:00:22]} h6 {[%emt 0:00:15]} 9. Bh4 {[%emt 0:01:18]} dxc4 {[%emt 0:00:19]} 10. Bxc4 {[%emt 0:00:07]} b5 {[%emt 0:00:06]} 11. Be2 {[%emt 0:02:41]} Bb7 {[%emt 0:01:03]} 12. Rc1 {[%emt 0:04:19]} a6 {[%emt 0:01:44]} 13. Ne5 {[%emt 0:02:15]} Rc8 {[%emt 0:13:42]} 14. Bf3 {[%emt 0:03:39]} Nxe5 {[%emt 0:03:00]} 15. dxe5 {[%emt 0:00:10]} Nd5 {[%emt 0:00:10]} 16. Bxe7 {[%emt 0:01:12]} Qxe7 {[%emt 0:00:33]} 17. Ne4 {[%emt 0:00:20]} Rcd8 {[%emt 0:13:24]} 18. Nd6 {[%emt 0:07:50]} f6 {[%emt 0:20:36]} 19. Bxd5 {[%emt 0:04:31]} exd5 {[%emt 0:09:24]} 20. Nxb7 {[%emt 0:08:33]} Qxb7 {[%emt 0:00:31]} 21. Qc2 {[%emt 0:05:23]} Rc8 {[%emt 0:10:16]} 22. exf6 {[%emt 0:02:19]} Rxf6 {[%emt 0:00:07]} 23. b4 {[%emt 0:11:44]} Qe7 {[%emt 0:06:34]} 24. Qc5 {[%emt 0:04:35]} Qe4 {[%emt 0:02:14]} 25. f3 {[%emt 0:00:44]} Qf5 {[%emt 0:02:02]} 26. Qa7 {[%emt 0:04:57]} Qd3 {[%emt 0:04:22]} 27. Qd4 {[%emt 0:05:31]} Qxd4 {[%emt 0:02:40]} 28. exd4 {[%emt 0:00:05]} Kf7 {[%emt 0:01:07]} 29. Kf2 {[%emt 0:01:34]} Ke7 {[%emt 0:00:26]} 30. Rc3 {[%emt 0:05:03]} Re6 {[%emt 0:02:18]} 31. Ra3 {[%emt 0:02:04]} Ra8 {[%emt 0:00:01]} 32. Rc1 {[%emt 0:04:07]} Kd7 {[%emt 0:00:26]} 33. Rcc3 {[%emt 0:01:36]} Ra7 {[%emt 0:01:16]} 34. Re3 {[%emt 0:01:05]} Rf6 {[%emt 0:00:37]} 35. Re5 {[%emt 0:03:10]} Re6 {[%emt 0:02:24]} 36. Rxe6 {[%emt 0:03:16]} Kxe6 {[%emt 0:00:02]} 37. f4 {[%emt 0:01:19]} Rf7 {[%emt 0:01:37]} 38. Ke3 {[%emt 0:01:08]} Ra7 {[%emt 0:00:12]} 39. g4 {[%emt 0:00:32]} g6 {[%emt 0:00:45]} 40. Kf3 {[%emt 0:02:24]} Kf6 {[%emt 0:01:48]} 41. Rc3 {[%emt 0:30:48]} Rc7 {[%emt 0:30:46]} 42. h4 {[%emt 0:00:49]} Kf7 {[%emt 0:00:00]} 43. g5 {[%emt 0:00:00]} h5 {[%emt 0:00:00]} 44. f5 {[%emt 0:00:00]} gxf5 {[%emt 0:00:00]} 45. Kf4 {[%emt 0:00:00]} Re7 {[%emt 0:00:00]} 46. Rxc6 {[%emt 0:00:00]} Re4+ {[%emt 0:00:00]} 47. Kxf5 {[%emt 0:00:00]} Rxh4 {[%emt 0:00:00]} 48. g6+ {[%emt 0:00:00]} Kg7 {[%emt 0:00:00]} 49. Rxa6 {[%emt 0:00:00]} Rxd4 {[%emt 0:00:00]} 50. Ra7+ {[%emt 0:00:00]} Kg8 {[%emt 0:00:00]} 51. a3 {[%emt 0:00:00]} h4 {[%emt 0:00:00]} 52. Ra8+ {[%emt 0:00:00]} Kg7 {[%emt 0:00:00]} 53. Ra7+ {[%emt 0:00:00]} Kg8 {[%emt 0:00:00]} 54. Kf6 {[%emt 0:00:00]} Rf4+ {[%emt 0:00:00]} 55. Kg5 {[%emt 0:00:32]} Rc4 {[%emt 0:00:00]} 56. Ra8+ {[%emt 0:00:32]} Kg7 {[%emt 0:00:00]} 57. Ra7+ {[%emt 0:00:02]} Kg8 {[%emt 0:00:00]} 58. Kh6 {[%emt 0:01:13]} Rc8 {[%emt 0:00:00]} 59. Rd7 {[%emt 0:03:51]} h3 {[%emt 0:00:00]} 60. Rxd5 {[%emt 0:00:37]} h2 {[%emt 0:00:00]} 61. Rh5 {[%emt 0:00:42]} Rc2 {[%emt 0:00:00]} 62. Kg5 {[%emt 0:00:59]} Rg2+ {[%emt 0:00:00]} 63. Kf5 {[%emt 0:00:26]} Rf2+ {[%emt 0:00:00]} 64. Kg4 {[%emt 0:03:42]} Kg7 {[%emt 0:00:00]} 65. Kg3 {[%emt 0:00:14]} Ra2 {[%emt 0:00:00]} 66. Rxh2 {[%emt 0:00:43]} Rxa3+ {[%emt 0:00:00]} 67. Kf4 {[%emt 0:00:32]} Rb3 {[%emt 0:00:31]} 68. Kf5 {[%emt 0:00:24]} Rxb4 {[%emt 0:00:12]} 69. Rh7+ {[%emt 0:00:18]} Kg8 {[%emt 0:00:05]} 70. Rb7 {[%emt 0:00:26]} Rb1 {[%emt 0:00:18]} 71. Rb8+ {[%emt 0:00:47]} 1/2-1/2

[Event "SVK-ch Open 2018"]
[Site "Banska Stiavnica"]
[Date "2018.07.13"]
[Round "7"]
[White "Kostolansky, Sebastian Lukas"]
[Black "Volcko, Richard"]
[Result "1-0"]
[ECO "C77"]
[WhiteElo "2197"]
[BlackElo "2068"]
[Annotator "NA"]
[PlyCount "89"]
[EventDate "2018.07.07"]
[EventType "swiss"]
[EventCountry "SVK"]
[SourceTitle "playchess.com"]
[Source "ChessBase"]
[SourceQuality "1"]
[TimeControl "40/5400+30:1800+30"]

1. e4 {[%emt 0:00:00]} e5 {[%emt 0:00:00]} 2. Nf3 {[%emt 0:00:00]} Nc6 {[%emt 0:00:00]} 3. Bb5 {[%emt 0:00:00]} a6 {[%emt 0:00:00]} 4. Ba4 {[%emt 0:00:00]} Nf6 $11 {[%emt 0:00:00]} 5. d3 {[%emt 0:00:00]} Bc5 {[%emt 0:00:02]} 6. O-O {[%emt 0:00:01]} d6 {[%emt 0:00:19]} 7. c3 {[%emt 0:00:07]} b5 {[%emt 0:00:20]} 8. Bc2 {[%emt 0:00:42]} Bb6 {[%emt 0:01:39]} 9. Nbd2 {[%emt 0:00:48]} O-O {[%emt 0:00:33]} 10. h3 {[%emt 0:00:24]} Bb7 {[%emt 0:04:58]} 11. Re1 {[%emt 0:01:08]} Ne7 {[%emt 0:00:45]} 12. Nf1 {[%emt 0:03:11]} Ng6 {[%emt 0:01:30]} 13. Ng3 {[%emt 0:04:22]} Re8 {[%emt 0:00:25]} 14. Be3 {[%emt 0:03:28]} d5 {[%emt 0:12:24]} 15. Bxb6 {[%emt 0:15:45]} cxb6 {[%emt 0:00:08]} 16. exd5 {[%emt 0:07:50]} Qxd5 {[%emt 0:16:59]} 17. Ne4 {[%emt 0:08:02]} Nxe4 {[%emt 0:10:24]} 18. dxe4 {[%emt 0:00:39]} Qc6 {[%emt 0:04:54]} 19. Qc1 {[%emt 0:12:35]} h6 {[%emt 0:08:38]} 20. Qe3 {[%emt 0:10:39]} Rad8 {[%emt 0:01:53]} 21. Rad1 {[%emt 0:01:21]} Qf6 {[%emt 0:01:01]} 22. g3 {[%emt 0:06:39]} Bc8 {[%emt 0:06:50]} 23. h4 {[%emt 0:00:51]} Bg4 {[%emt 0:10:50]} 24. Rxd8 {[%emt 0:00:32]} Rxd8 {[%emt 0:00:28]} 25. Nh2 {[%emt 0:00:28]} Bh3 {[%emt 0:02:55]} 26. Bd1 {[%emt 0:04:54]} Rd6 {[%emt 0:04:20]} 27. Bh5 {[%emt 0:03:22]} Be6 {[%emt 0:08:47]} 28. Be2 {[%emt 0:05:31]} Qd8 {[%emt 0:01:22]} 29. h5 {[%emt 0:00:40]} Nf8 {[%emt 0:00:52]} 30. b3 {[%emt 0:05:41]} Rd2 {[%emt 0:00:28]} 31. a4 {[%emt 0:01:04]} Bxb3 {[%emt 0:00:39]} 32. axb5 {[%emt 0:00:12]} a5 {[%emt 0:00:23]} 33. Nf3 {[%emt 0:00:06]} Rc2 {[%emt 0:00:57]} 34. Bd1 {[%emt 0:00:41]} Rb2 {[%emt 0:00:08]} 35. Qc1 {[%emt 0:00:03]} Bxd1 {[%emt 0:00:41]} 36. Rxd1 {[%emt 0:00:08]} Qf6 {[%emt 0:00:29]} 37. Qxb2 {[%emt 0:00:10]} Qxf3 {[%emt 0:00:05]} 38. Rd8 {[%emt 0:00:26]} Qf6 {[%emt 0:01:11]} 39. Qd2 {[%emt 0:00:48]} Qe7 {[%emt 0:00:38]} 40. Qd6 {[%emt 0:00:40]} Qxd6 {[%emt 0:00:12]} 41. Rxd6 {[%emt 0:30:06]} Ne6 {[%emt 0:01:28]} 42. Rxb6 {[%emt 0:00:00]} a4 {[%emt 0:00:10]} 43. Rb8+ {[%emt 0:00:00]} Kh7 {[%emt 0:00:06]} 44. Ra8 {[%emt 0:00:00]} Nc7 {[%emt 0:00:19]} 45. b6 {[%emt 0:00:00]} 1-0

[Event "SVK-ch Open 2018"]
[Site "Banska Stiavnica"]
[Date "2018.07.13"]
[Round "7"]
[White "Jozefek, Michal"]
[Black "Franzen, Jozef"]
[Result "0-1"]
[ECO "E96"]
[WhiteElo "2182"]
[BlackElo "2256"]
[Annotator "NA"]
[PlyCount "66"]
[EventDate "2018.07.07"]
[EventType "swiss"]
[EventCountry "SVK"]
[SourceTitle "playchess.com"]
[Source "ChessBase"]
[SourceQuality "1"]
[TimeControl "40/5400+30:1800+30"]

1. d4 {[%emt 0:00:00]} Nf6 {[%emt 0:00:00]} 2. c4 {[%emt 0:00:00]} g6 {[%emt 0:00:00]} 3. Nc3 {[%emt 0:00:00]} Bg7 {[%emt 0:00:00]} 4. e4 {[%emt 0:00:01]} d6 {[%emt 0:00:00]} 5. Be2 {[%emt 0:00:07]} O-O {[%emt 0:00:06]} 6. Nf3 $11 {[%emt 0:00:13] LiveBook: 39255 Games} Nbd7 {[%emt 0:00:18]} 7. O-O {[%emt 0:00:08]} e5 {[%emt 0:00:08]} 8. Re1 {[%emt 0:00:11]} c6 {[%emt 0:00:16]} 9. Bf1 {[%emt 0:00:08]} a5 {[%emt 0:00:37]} 10. Rb1 {[%emt 0:07:24]} h6 {[%emt 0:06:33]} 11. a3 {[%emt 0:01:36]} exd4 {[%emt 0:08:13]} 12. Nxd4 {[%emt 0:00:24]} Nc5 {[%emt 0:02:15]} 13. b4 {[%emt 0:07:18]} axb4 {[%emt 0:00:06]} 14. axb4 {[%emt 0:00:03]} Ne6 {[%emt 0:00:29]} 15. Nde2 {[%emt 0:08:02]} Ng4 {[%emt 0:08:43]} 16. h3 {[%emt 0:06:04]} Ne5 {[%emt 0:00:26]} 17. Qb3 {[%emt 0:04:33]} Qh4 {[%emt 0:05:44]} 18. Be3 {[%emt 0:06:41]} Ng5 {[%emt 0:02:48]} 19. Nf4 {[%emt 0:02:35]} Ngf3+ 20. gxf3 {[%emt 0:02:35]} g5 {[%emt 0:08:34]} 21. Nce2 {[%emt 0:07:02]} Nxf3+ {[%emt 0:02:13]} 22. Kg2 {[%emt 0:00:24]} Nxe1+ {[%emt 0:10:01]} 23. Rxe1 {[%emt 0:00:15]} gxf4 {[%emt 0:00:10]} 24. Bxf4 {[%emt 0:00:05]} Be5 {[%emt 0:01:15]} 25. Qg3+ {[%emt 0:01:00]} Qxg3+ {[%emt 0:00:07]} 26. fxg3 {[%emt 0:00:13]} Ra2 {[%emt 0:00:34]} 27. Bxh6 {[%emt 0:00:58]} Re8 {[%emt 0:00:10]} 28. Kh1 {[%emt 0:02:28]} Be6 {[%emt 0:01:09]} 29. Nf4 {[%emt 0:03:02]} Rea8 {[%emt 0:02:13]} 30. Nxe6 {[%emt 0:01:14]} fxe6 {[%emt 0:00:02]} 31. Bf4 {[%emt 0:00:25]} Bxf4 {[%emt 0:02:42]} 32. gxf4 {[%emt 0:00:02]} Rf2 {[%emt 0:03:52]} 33. e5 {[%emt 0:01:15]} d5 {[%emt 0:00:22]} 0-1

[Event "SVK-ch Open 2018"]
[Site "Banska Stiavnica"]
[Date "2018.07.13"]
[Round "7"]
[White "Nogrady, Vilmos"]
[Black "Bednar, Jan"]
[Result "1-0"]
[ECO "B21"]
[WhiteElo "2154"]
[BlackElo "2010"]
[Annotator "NA"]
[PlyCount "31"]
[EventDate "2018.07.07"]
[EventType "swiss"]
[EventCountry "SVK"]
[SourceTitle "playchess.com"]
[Source "ChessBase"]
[SourceQuality "1"]
[TimeControl "40/5400+30:1800+30"]

1. e4 {[%emt 0:00:00]} c5 {[%emt 0:00:47]} 2. d4 {[%emt 0:00:00]} cxd4 {[%emt 0:00:09]} 3. c3 {[%emt 0:00:09]} dxc3 {[%emt 0:00:33]} 4. Nxc3 {[%emt 0:00:04]} Nc6 {[%emt 0:00:24]} 5. Nf3 {[%emt 0:00:09]} d6 {[%emt 0:01:48]} 6. Bc4 {[%emt 0:00:41]} e6 {[%emt 0:03:03]} 7. O-O {[%emt 0:01:40]} Be7 {[%emt 0:00:13]} 8. Qe2 {[%emt 0:01:19]} a6 {[%emt 0:00:35]} 9. Rd1 {[%emt 0:02:07]} Qc7 {[%emt 0:01:10]} 10. Bf4 {[%emt 0:02:20]} Nf6 {[%emt 0:07:15]} 11. Rac1 {[%emt 0:06:03]} O-O {[%emt 0:03:35]} 12. Bb3 {[%emt 0:09:44]} Bd7 {[%emt 0:08:46]} 13. e5 {[%emt 0:07:25]} Ne8 {[%emt 0:13:44]} 14. exd6 {[%emt 0:01:09]} Bxd6 {[%emt 0:03:31]} 15. Bxd6 {[%emt 0:07:15]} Nxd6 {[%emt 0:00:17]} 16. Qd3 {[%emt 0:00:43]} 1-0

[Event "SVK-ch Open 2018"]
[Site "Banska Stiavnica"]
[Date "2018.07.13"]
[Round "7"]
[White "Cech, Dominik"]
[Black "Panko, Radoslav"]
[Result "1-0"]
[ECO "C00"]
[WhiteElo "2151"]
[BlackElo "2049"]
[Annotator "NA"]
[PlyCount "80"]
[EventDate "2018.07.07"]
[EventType "swiss"]
[EventCountry "SVK"]
[SourceTitle "playchess.com"]
[Source "ChessBase"]
[SourceQuality "1"]
[TimeControl "40/5400+30:1800+30"]

1. e4 {[%emt 0:06:45]} e6 {[%emt 0:00:00]} 2. d3 {[%emt 0:00:39]} d5 {[%emt 0:00:00]} 3. Nd2 {[%emt 0:00:08]} c5 {[%emt 0:00:00]} 4. Ngf3 {[%emt 0:01:12]} Nc6 {[%emt 0:00:00]} 5. g3 {[%emt 0:00:35]} g6 {[%emt 0:00:00]} 6. Bg2 {[%emt 0:00:54]} Bg7 {[%emt 0:00:00]} 7. O-O {[%emt 0:00:39]} Nge7 {[%emt 0:00:00]} 8. Re1 {[%emt 0:01:14]} b6 {[%emt 0:00:31]} 9. h4 {[%emt 0:08:07]} h6 {[%emt 0:00:06]} 10. a3 {[%emt 0:03:22]} a5 {[%emt 0:00:05]} 11. Nf1 {[%emt 0:08:58]} Ra7 {[%emt 0:01:22]} 12. e5 {[%emt 0:01:08]} Qc7 {[%emt 0:05:10]} 13. Qe2 {[%emt 0:09:30]} Nd4 {[%emt 0:18:38]} 14. Nxd4 {[%emt 0:00:50]} cxd4 {[%emt 0:00:01]} 15. Nh2 {[%emt 0:02:55]} a4 {[%emt 0:25:50]} 16. Ng4 {[%emt 0:09:27]} h5 {[%emt 0:02:27]} 17. Nf6+ {[%emt 0:00:56]} Kf8 {[%emt 0:00:54]} 18. Bf4 {[%emt 0:08:15]} Qc5 {[%emt 0:03:18]} 19. Rac1 {[%emt 0:02:36]} Ba6 {[%emt 0:00:58]} 20. Bf3 {[%emt 0:08:00]} Bh6 {[%emt 0:00:30]} 21. Bxh6+ {[%emt 0:02:03]} Rxh6 {[%emt 0:00:02]} 22. Qd2 {[%emt 0:00:35]} Rh8 23. Kg2 Ng8 {[%emt 0:04:14]} 24. g4 {[%emt 0:10:04]} Nxf6 {[%emt 0:00:45]} 25. exf6 {[%emt 0:00:12]} hxg4 {[%emt 0:00:41]} 26. Bxg4 {[%emt 0:00:14]} Qd6 {[%emt 0:03:08]} 27. Qg5 {[%emt 0:01:00]} Ke8 {[%emt 0:02:47]} 28. h5 {[%emt 0:04:07]} gxh5 {[%emt 0:00:32]} 29. Bxh5 {[%emt 0:03:23]} Qf8 {[%emt 0:00:41]} 30. Rxe6+ {[%emt 0:00:15]} Kd8 {[%emt 0:00:31]} 31. Qxd5+ {[%emt 0:01:19]} Rd7 {[%emt 0:10:33]} 32. Qa8+ {[%emt 0:01:43]} Bc8 {[%emt 0:02:20]} 33. Rc6 {[%emt 0:02:30]} Rc7 {[%emt 0:00:30]} 34. Bf3 {[%emt 0:01:32]} Rxc6 {[%emt 0:13:02]} 35. Qxc6 {[%emt 0:00:32]} Qc5 {[%emt 0:00:33]} 36. Qd5+ {[%emt 0:01:00]} Bd7 {[%emt 0:07:10]} 37. Re1 {[%emt 0:00:51]} Qc7 {[%emt 0:00:37]} 38. Re7 {[%emt 0:00:37]} Qh2+ {[%emt 0:00:20]} 39. Kf1 {[%emt 0:00:08]} Qh3+ {[%emt 0:00:22]} 40. Bg2 {[%emt 0:00:36]} Qh6 {[%emt 0:00:45]} 1-0

[Event "SVK-ch Open 2018"]
[Site "Banska Stiavnica"]
[Date "2018.07.13"]
[Round "7"]
[White "Demeter, Peter"]
[Black "Kantorik, Marian"]
[Result "1/2-1/2"]
[ECO "A13"]
[WhiteElo "2146"]
[BlackElo "2260"]
[Annotator "NA"]
[PlyCount "56"]
[EventDate "2018.07.07"]
[EventType "swiss"]
[EventCountry "SVK"]
[SourceTitle "playchess.com"]
[Source "ChessBase"]
[SourceQuality "1"]
[TimeControl "40/5400+30:1800+30"]

1. c4 {[%emt 0:00:00]} e6 {[%emt 0:08:49]} 2. g3 {[%emt 0:00:00]} d5 {[%emt 0:00:29]} 3. Bg2 {[%emt 0:00:00]} c5 {[%emt 0:01:12]} 4. Nf3 {[%emt 0:00:01]} Nc6 {[%emt 0:00:13]} 5. O-O {[%emt 0:00:09]} Nf6 {[%emt 0:01:13]} 6. d3 {[%emt 0:01:06]} Be7 {[%emt 0:00:39]} 7. e3 {[%emt 0:02:12]} O-O {[%emt 0:01:21]} 8. Nc3 {[%emt 0:06:21]} b6 {[%emt 0:05:22]} 9. cxd5 {[%emt 0:05:10]} exd5 {[%emt 0:02:38]} 10. e4 {[%emt 0:04:02]} d4 {[%emt 0:09:27]} 11. Ne2 {[%emt 0:04:15]} Re8 {[%emt 0:04:08]} 12. Re1 {[%emt 0:06:35]} Bb7 {[%emt 0:02:43]} 13. Bd2 {[%emt 0:07:05]} b5 {[%emt 0:10:38]} 14. a4 {[%emt 0:11:33]} a6 {[%emt 0:02:09]} 15. axb5 {[%emt 0:05:56]} axb5 {[%emt 0:00:15]} 16. Qb3 {[%emt 0:00:11]} b4 {[%emt 0:12:53]} 17. Rxa8 {[%emt 0:09:15]} Qxa8 {[%emt 0:04:38]} 18. Qc2 {[%emt 0:06:15]} Bf8 {[%emt 0:04:25]} 19. Nc1 {[%emt 0:05:16]} Qa6 {[%emt 0:05:37]} 20. Nb3 {[%emt 0:03:54]} Qb5 {[%emt 0:03:20]} 21. Bf4 {[%emt 0:03:43]} Ba6 {[%emt 0:04:08]} 22. Bf1 {[%emt 0:00:49]} Nd7 {[%emt 0:02:09]} 23. Rc1 {[%emt 0:01:33]} Qb6 {[%emt 0:02:16]} 24. Nbd2 {[%emt 0:01:23]} Na5 {[%emt 0:01:12]} 25. b3 {[%emt 0:01:10]} Bb5 {[%emt 0:00:05]} 26. Ra1 {[%emt 0:01:02]} Bc6 {[%emt 0:00:39]} 27. Nc4 {[%emt 0:03:32]} Nxc4 {[%emt 0:00:05]} 28. Qxc4 {[%emt 0:00:12]} Bb5 {[%emt 0:01:19]} 1/2-1/2